fUSD/lending_fUSD_20240215
["ID","MTS","AMOUNT","RATE_DAILY","PERIOD"]
[314170067,1708039859182,-150.0,0.00040449,2]
[314170068,1708039859191,-150.0,0.00040476,2]
[314170069,1708039859200,-200.0,0.00040492,15]
[314170070,1708039859212,-800.0,0.00040492,15]
[314170071,1708039859221,-200.0,0.00040492,10]
[314170072,1708039859230,-200.0,0.00040492,20]
[314170073,1708039859239,-500.0,0.00040492,20]
[314170074,1708039859249,-200.0,0.00040493,20]
[314170075,1708039859260,-2523.74854075,0.00040493,5]
[314170076,1708039859269,-800.0,0.00040493,15]
[314170077,1708039859279,-150.0,0.00040493,2]
[314170078,1708039859289,-200.0,0.00040493,20]
[314170079,1708039859298,-800.0,0.00040493,15]
[314170080,1708039859308,-800.0,0.00040493,15]
[314170081,1708039859317,-200.0,0.00040493,20]
[314170082,1708039859327,-200.0,0.00040493,20]
[314170083,1708039859336,-200.0,0.00040493,20]
[314170084,1708039859345,-500.0,0.00040493,20]
[314170085,1708039859355,-171.18795662,0.00040509,30]
[314170086,1708039859364,-151.0,0.00040517,2]
[314170087,1708039859373,-205.0,0.00040518,16]
[314170088,1708039859382,-150.0,0.00040519,2]
[314170089,1708039859391,-150.0,0.00040522,2]
[314170090,1708039859402,-150.0,0.00040536,2]
[314170091,1708039859413,-151.0,0.00040544,7]
[314170092,1708039859425,-154.0,0.00040544,7]
[314170093,1708039859434,-500.0,0.00040547,7]
[314170094,1708039859443,-500.0,0.00040547,7]
[314170095,1708039859453,-500.0,0.00040547,7]
[314170096,1708039859463,-641.93,0.00040547,7]
[314170097,1708039859472,-500.0,0.00040547,7]
[314170098,1708039859482,-706.01,0.00040547,7]
[314170099,1708039859491,-500.0,0.00040547,7]
[314170100,1708039859500,-516.65,0.00040547,7]
[314170101,1708039859509,-533.86,0.00040547,7]
[314170102,1708039859518,-700.0,0.00040547,7]
[314170103,1708039859527,-500.0,0.00040547,7]
[314170104,1708039859537,-1877.83,0.00040547,7]
[314170105,1708039859545,-623.53,0.00040547,7]
[314170106,1708039859555,-500.0,0.00040547,7]
[314170107,1708039859565,-500.0,0.00040547,7]
[314170108,1708039859575,-500.0,0.00040547,7]
[314170109,1708039859585,-500.0,0.00040547,7]
[314170110,1708039859594,-552.23,0.00040547,7]
[314170111,1708039859605,-965.78,0.00040547,7]
[314170112,1708039859614,-500.0,0.00040547,7]
[314170113,1708039859623,-564.23,0.00040547,7]
[314170114,1708039859632,-596.43,0.00040547,7]
[314170115,1708039859642,-500.0,0.00040547,7]
[314170116,1708039859651,-500.0,0.00040547,7]
[314170117,1708039859660,-604.95,0.00040547,7]
[314170118,1708039859670,-752.59,0.00040547,7]
[314170119,1708039859679,-670.38,0.00040547,7]
[314170120,1708039859688,-500.0,0.00040547,7]
[314170121,1708039859697,-500.0,0.00040547,7]
[314170122,1708039859706,-1453.37,0.00040547,7]
[314170123,1708039859714,-1177.03,0.00040547,7]
[314170124,1708039859724,-8292.83,0.00040547,7]
[314170125,1708039859733,-598.96,0.00040547,7]
[314170126,1708039859742,-567.05,0.00040547,7]
[314170127,1708039859752,-684.76,0.00040547,7]
[314170128,1708039859761,-583.44883133,0.00040547,7]
[314170129,1708039859771,-1813.21416422,0.00040609,2]
[314170130,1708039859780,-2864.0732869,0.00040609,2]
[314170131,1708039859789,-6952.7726718,0.00040609,2]
[314170132,1708039859798,-150.0,0.00040636,2]
[314170133,1708039859807,-783.72386615,0.00040664,2]
[314170134,1708039859817,-150.0,0.00040665,2]
[314170135,1708039859826,-150.0,0.00040668,2]
[314170136,1708039859836,-150.0,0.00040669,2]
[314170137,1708039859846,-150.0,0.00040675,2]
[314170138,1708039859855,-150.0,0.00040676,2]
[314170139,1708039859865,-159.26338955,0.00040678,14]
[314170140,1708039859874,-151.0,0.00040681,7]
[314170141,1708039859883,-154.0,0.00040681,7]
[314170142,1708039859893,-1364.38,0.00040683,7]
[314170143,1708039859902,-1364.38,0.00040683,7]
[314170144,1708039859912,-150.0,0.00040689,2]
[314170145,1708039859922,-152.97427392,0.000407,9]
[314170146,1708039859933,-150.0,0.00040705,2]
[314170147,1708039859942,-150.0,0.00040708,2]
[314170148,1708039859950,-150.0,0.00040721,2]
[314170149,1708039859960,-500.0,0.00040724,2]
[314170150,1708039859969,-500.0,0.00040724,2]
[314170151,1708039859979,-500.0,0.00040724,2]
[314170152,1708039859988,-500.0,0.00040724,2]
[314170153,1708039859998,-500.0,0.00040724,2]
[314170154,1708039860007,-500.0,0.00040724,2]
[314170155,1708039860016,-500.0,0.00040724,2]
[314170156,1708039860025,-500.0,0.00040724,2]
[314170157,1708039860034,-500.0,0.00040724,2]
[314170158,1708039860043,-500.0,0.00040724,2]
[314170159,1708039860053,-500.0,0.00040724,2]
[314170160,1708039860062,-500.0,0.00040724,2]
[314170161,1708039860072,-500.0,0.00040724,2]
[314170162,1708039860081,-500.0,0.00040724,2]
[314170163,1708039860090,-300.0,0.00040724,2]
[314170164,1708039860100,-150.0,0.00040724,2]
[314170165,1708039860109,-150.0,0.00040731,2]
[314170166,1708039860118,-500.0,0.00040732,2]
[314170167,1708039860127,-500.0,0.00040732,2]
[314170168,1708039860136,-500.0,0.00040732,2]
[314170169,1708039860145,-500.0,0.00040732,2]
[314170170,1708039860154,-500.0,0.00040732,2]
[314170171,1708039860166,-500.0,0.00040732,2]
[314170172,1708039860176,-500.0,0.00040732,2]
[314170173,1708039860186,-500.0,0.00040732,2]
[314170174,1708039860195,-500.0,0.00040732,2]
[314170175,1708039860208,-500.0,0.00040732,2]
[314170176,1708039860217,-500.0,0.00040732,2]
[314170177,1708039860226,-266.21,0.00040733,2]
[314170178,1708039860236,-150.0,0.00040747,2]
[314170179,1708039860246,-234.021624,0.00040748,26]
[314170180,1708039860256,-150.0,0.00040766,2]
[314170181,1708039860265,-1050.0,0.00040772,7]
[314170182,1708039860275,-628.0,0.00040772,7]
[314170183,1708039860286,-728.0,0.00040772,7]
[314170184,1708039860295,-200.0,0.00040772,7]
[314170185,1708039860305,-395.68959334,0.00040784,2]
[314170186,1708039860313,-200.0,0.000408,16]
[314170187,1708039860323,-292.35,0.000408,7]
[314170188,1708039860332,-200.0,0.000408,2]
[314170189,1708039860341,-1000.0,0.000408,4]
[314170190,1708039860350,-151.0,0.00040818,7]
[314170191,1708039860359,-154.0,0.00040818,7]
[314170192,1708039860368,-150.01,0.00040819,2]
[314170193,1708039860387,-3316.12830692,0.00040819,2]
[314170194,1708039860399,-790.65609905,0.00040819,4]
[314170195,1708039860408,-3266.78191523,0.0004082,2]
[314170196,1708039860418,-1366.2312531,0.0004082,2]
[314170197,1708039860427,-2476.9042277,0.0004082,2]
[314170198,1708039860437,-45581.1297209,0.0004082,2]
[314170199,1708039860446,-500.0,0.00040821,7]
[314170200,1708039860455,-500.0,0.00040821,7]
[314170201,1708039860465,-151.0,0.00040821,2]
[314170202,1708039860475,-500.0,0.00040821,7]
[314170203,1708039860487,-641.93,0.00040821,7]
[314170204,1708039860498,-500.0,0.00040821,7]
[314170205,1708039860507,-706.01,0.00040821,7]
[314170206,1708039860653,-500.0,0.00040821,7]
[314170207,1708039860664,-516.65,0.00040821,7]
[314170208,1708039860674,-533.86,0.00040821,7]
[314170209,1708039860684,-700.0,0.00040821,7]
[314170210,1708039860694,-500.0,0.00040821,7]
[314170211,1708039860705,-1877.83,0.00040821,7]
[314170212,1708039860715,-623.53,0.00040821,7]
[314170213,1708039860725,-500.0,0.00040821,7]
[314170214,1708039860735,-500.0,0.00040821,7]
[314170215,1708039860744,-500.0,0.00040821,7]
[314170216,1708039860754,-500.0,0.00040821,7]
[314170217,1708039860764,-552.23,0.00040821,7]
[314170218,1708039860773,-965.78,0.00040821,7]
[314170219,1708039860784,-500.0,0.00040821,7]
[314170220,1708039860794,-564.23,0.00040821,7]
[314170221,1708039860803,-596.43,0.00040821,7]
[314170222,1708039860813,-500.0,0.00040821,7]
[314170223,1708039860822,-500.0,0.00040821,7]
[314170224,1708039860831,-604.95,0.00040821,7]
[314170225,1708039860840,-752.59,0.00040821,7]
[314170226,1708039860850,-670.38,0.00040821,7]
[314170227,1708039860859,-500.0,0.00040821,7]
[314170228,1708039860871,-500.0,0.00040821,7]
[314170229,1708039860881,-1453.37,0.00040821,7]
[314170230,1708039860890,-1177.03,0.00040821,7]
[314170231,1708039860900,-8292.83,0.00040821,7]
[314170232,1708039860909,-598.96,0.00040821,7]
[314170233,1708039860918,-567.05,0.00040821,7]
[314170234,1708039860928,-684.76,0.00040821,7]
[314170235,1708039860937,-234.021624,0.00040848,27]
[314170236,1708039860946,-500.0,0.00040895,7]
[314170237,1708039860956,-7765.71538254,0.000409,7]
[314170238,1708039860966,-170.96170755,0.000409,2]
[314170239,1708039860975,-170.96170755,0.000409,2]
[314170240,1708039860985,-3000.0,0.000409,2]
[314170241,1708039860994,-200.34,0.00040942,2]
[314170242,1708039861003,-234.021624,0.00040948,25]
[314170243,1708039861012,-151.0,0.00040955,7]
[314170244,1708039861022,-154.0,0.00040955,7]
[314170245,1708039861031,-1364.38,0.00040956,7]
[314170246,1708039861040,-1364.38,0.00040956,7]
[314170247,1708039861050,-153.47733883,0.0004097,30]
[314170248,1708039861060,-588.0,0.00040973,30]
[314170249,1708039861070,-199.0,0.00040973,30]
[314170250,1708039861080,-92339.39737066,0.00040985,3]
[314170251,1708039861090,-340.323789,0.00040985,7]
[314170252,1708039861099,-340.323789,0.00040985,7]
[314170253,1708039861108,-151.0,0.00040985,7]
[314170254,1708039861118,-286.135688,0.00040985,7]
[314170255,1708039861127,-600.0,0.00040986,7]
[314170256,1708039861136,-600.0,0.00040986,7]
[314170257,1708039861145,-600.0,0.00040986,7]
[314170258,1708039861154,-600.0,0.00040986,7]
[314170259,1708039861164,-600.0,0.00040986,7]
[314170260,1708039861173,-600.0,0.00040986,7]
[314170261,1708039861183,-600.0,0.00040986,7]
[314170262,1708039861193,-600.0,0.00040986,7]
[314170263,1708039861204,-600.0,0.00040986,7]
[314170264,1708039861215,-600.0,0.00040986,7]
[314170265,1708039861224,-200.0,0.00040987,10]
[314170266,1708039861234,-2877.79440369,0.00040989,3]
[314170267,1708039861243,-59204.02343916,0.00041,31]
[314170268,1708039861444,-40795.97656084,0.00041,31]
[314170269,1708039861453,-234.0,0.00041,4]
[314170270,1708039861462,-1000.0,0.00041,120]
[314170271,1708039861472,-800.0,0.00041,2]
[314170272,1708039861481,-9067.44849491,0.00041,5]
[314170273,1708039861490,-500.0,0.00041,6]
[314170274,1708039861499,-1508.79873285,0.00041,120]
[314170275,1708039861508,-192484.41483627,0.00041,5]
[314170276,1708039861517,-2428.93445607,0.00041,5]
[314170277,1708039861526,-36905.0,0.00041,31]
[314170278,1708039861535,-5000.0,0.00041,14]
[314170279,1708039861544,-58000.0,0.00041,5]
[314170280,1708039861553,-5912.23923637,0.00041,4]
[314170281,1708039861562,-3913.61,0.00041,30]
[314170282,1708039861572,-3913.61,0.00041,2]
[314170283,1708039861581,-340.323789,0.00041,7]
[314170284,1708039861590,-340.323789,0.00041,7]
[314170285,1708039861599,-151.0,0.00041,7]
[314170286,1708039861609,-1615.42,0.00041,30]
[314170287,1708039861618,-151.48,0.00041,2]
[314170288,1708039861631,-151.48,0.00041,2]
[314170289,1708039861642,-151.48,0.00041,2]
[314170290,1708039861651,-151.48,0.00041,2]
[314170291,1708039861661,-500.0,0.00041029,7]
[314170292,1708039861670,-234.021624,0.00041048,26]
[314170293,1708039861678,-150.0,0.0004105,2]
[314170294,1708039861688,-151.0,0.00041092,7]
[314170295,1708039861697,-154.0,0.00041092,7]
[314170296,1708039861706,-500.0,0.00041095,7]
[314170297,1708039861715,-1000.0,0.00041095,2]
[314170298,1708039861724,-500.0,0.00041095,30]
[314170299,1708039861733,-1004.83982426,0.00041095,7]
[314170300,1708039861742,-500.0,0.00041095,2]
[314170301,1708039861751,-500.0,0.00041095,2]
[314170302,1708039861760,-500.0,0.00041095,2]
[314170303,1708039861769,-500.0,0.00041095,2]
[314170304,1708039861778,-608.71866468,0.00041095,2]
[314170305,1708039861787,-600.0,0.00041095,30]
[314170306,1708039861796,-500.0,0.00041095,30]
[314170307,1708039861806,-500.0,0.00041095,30]
[314170308,1708039861814,-641.93,0.00041095,30]
[314170309,1708039861825,-500.0,0.00041095,30]
[314170310,1708039861835,-706.01,0.00041095,30]
[314170311,1708039861846,-500.0,0.00041095,30]
[314170312,1708039861855,-516.65,0.00041095,30]
[314170313,1708039861865,-533.86,0.00041095,30]
[314170314,1708039861875,-700.0,0.00041095,30]
[314170315,1708039861884,-500.0,0.00041095,30]
[314170316,1708039861893,-1877.83,0.00041095,30]
[314170317,1708039861903,-623.53,0.00041095,30]
[314170318,1708039861913,-336.97940382,0.00041095,30]
[314170319,1708039861923,-500.0,0.00041095,30]
[314170320,1708039861932,-500.0,0.00041095,30]
[314170321,1708039861943,-155.55613043,0.00041095,30]
[314170322,1708039861952,-552.23,0.00041095,30]
[314170323,1708039861964,-965.78,0.00041095,30]
[314170324,1708039861973,-500.0,0.00041095,30]
[314170325,1708039861982,-564.23,0.00041095,30]
[314170326,1708039861994,-596.43,0.00041095,30]
[314170327,1708039862003,-500.0,0.00041095,30]
[314170328,1708039862013,-500.0,0.00041095,30]
[314170329,1708039862022,-604.95,0.00041095,30]
[314170330,1708039862032,-752.59,0.00041095,30]
[314170331,1708039862042,-670.38,0.00041095,30]
[314170332,1708039862052,-500.0,0.00041095,30]
[314170333,1708039862062,-500.0,0.00041095,30]
[314170334,1708039862071,-1453.37,0.00041095,30]
[314170335,1708039862081,-1177.03,0.00041095,30]
[314170336,1708039862090,-8292.83,0.00041095,30]
[314170337,1708039862100,-598.96,0.00041095,30]
[314170338,1708039862109,-150.0,0.00041095,3]
[314170339,1708039862119,-150.0,0.00041095,3]
[314170340,1708039862128,-567.05,0.00041095,30]
[314170341,1708039862138,-684.76,0.00041095,30]
[314170342,1708039862147,-159.205528,0.00041096,14]
[314170343,1708039862156,-175.45,0.00041096,2]
[314170344,1708039862165,-316.92,0.000411,30]
[314170345,1708039862174,-3272.63,0.000411,7]
[314170346,1708039862182,-1050.0,0.00041118,7]
[314170347,1708039862192,-628.0,0.00041118,7]
[314170348,1708039862202,-728.0,0.00041118,7]
[314170349,1708039862215,-200.0,0.00041118,7]
[314170350,1708039862225,-161.32139665,0.00041128,30]
[314170351,1708039862234,-234.021624,0.00041148,27]
[314170352,1708039862244,-500.0,0.00041163,7]
[314170353,1708039862254,-394.54,0.000412,7]
[314170354,1708039862264,-154.03,0.000412,4]
[314170355,1708039862272,-154.03,0.000412,4]
[314170356,1708039862283,-451.5,0.000412,4]
[314170357,1708039862292,-451.5,0.000412,4]
[314170358,1708039862303,-451.5,0.000412,4]
[314170359,1708039862314,-451.5,0.000412,4]
[314170360,1708039862324,-451.5,0.000412,4]
[314170361,1708039862334,-451.5,0.000412,4]
[314170362,1708039862343,-451.5,0.000412,4]
[314170363,1708039862352,-451.5,0.000412,4]
[314170364,1708039862361,-451.5,0.000412,4]
[314170365,1708039862373,-451.5,0.000412,4]
[314170366,1708039862383,-451.5,0.000412,4]
[314170367,1708039862396,-451.5,0.000412,4]
[314170368,1708039862406,-451.5,0.000412,4]
[314170369,1708039862416,-451.5,0.000412,4]
[314170370,1708039862426,-451.5,0.000412,4]
[314170371,1708039862437,-451.5,0.000412,4]
[314170372,1708039862456,-451.5,0.000412,4]
[314170373,1708039862467,-451.5,0.000412,4]
[314170374,1708039862477,-451.5,0.000412,4]
[314170375,1708039862487,-451.5,0.000412,4]
[314170376,1708039862498,-170.0,0.0004121,2]
[314170377,1708039862509,-151.0,0.00041229,7]
[314170378,1708039862520,-154.0,0.00041229,7]
[314170379,1708039862530,-1364.38,0.0004123,7]
[314170380,1708039862541,-1364.38,0.0004123,7]
[314170381,1708039862553,-161.32139665,0.00041236,30]
[314170382,1708039862562,-234.021624,0.00041248,25]
[314170383,1708039862571,-167.06,0.00041276,2]
[314170384,1708039862583,-152.0,0.00041284,5]
[314170385,1708039862592,-500.0,0.00041296,7]
[314170386,1708039862602,-200.0,0.000413,15]
[314170387,1708039862611,-200.0,0.000413,16]
[314170388,1708039862621,-39090.9545623,0.0004131,3]
[314170389,1708039862630,-159.53892364,0.00041326,30]
[314170390,1708039862640,-234.021624,0.00041348,26]
[314170391,1708039862649,-151.0,0.00041366,7]
[314170392,1708039862658,-154.0,0.00041366,7]
[314170393,1708039862668,-1000.0,0.00041369,15]
[314170394,1708039862677,-353.33035146,0.00041369,30]
[314170395,1708039862816,-600.0,0.00041369,30]
[314170396,1708039862839,-500.0,0.00041369,30]
[314170397,1708039862848,-500.0,0.00041369,30]
[314170398,1708039862857,-641.93,0.00041369,30]
[314170399,1708039862867,-500.0,0.00041369,30]
[314170400,1708039862876,-706.01,0.00041369,30]
[314170401,1708039862886,-500.0,0.00041369,30]
[314170402,1708039862895,-516.65,0.00041369,30]
[314170403,1708039862905,-533.86,0.00041369,30]
[314170404,1708039862915,-700.0,0.00041369,30]
[314170405,1708039862924,-500.0,0.00041369,30]
[314170406,1708039862933,-1877.83,0.00041369,30]
[314170407,1708039862945,-623.53,0.00041369,30]
[314170408,1708039862955,-500.0,0.00041369,30]
[314170409,1708039862964,-500.0,0.00041369,30]
[314170410,1708039862974,-552.23,0.00041369,30]
[314170411,1708039862983,-965.78,0.00041369,30]
[314170412,1708039862993,-500.0,0.00041369,30]
[314170413,1708039863002,-564.23,0.00041369,30]
[314170414,1708039863012,-596.43,0.00041369,30]
[314170415,1708039863022,-500.0,0.00041369,30]
[314170416,1708039863031,-500.0,0.00041369,30]
[314170417,1708039863040,-604.95,0.00041369,30]
[314170418,1708039863050,-752.59,0.00041369,30]
[314170419,1708039863060,-670.38,0.00041369,30]
[314170420,1708039863068,-500.0,0.00041369,30]
[314170421,1708039863079,-500.0,0.00041369,30]
[314170422,1708039863089,-1453.37,0.00041369,30]
[314170423,1708039863097,-1177.03,0.00041369,30]
[314170424,1708039863106,-8292.83,0.00041369,30]
[314170425,1708039863115,-598.96,0.00041369,30]
[314170426,1708039863125,-567.05,0.00041369,30]
[314170427,1708039863134,-684.76,0.00041369,30]
[314170428,1708039863143,-548.86,0.00041383,2]
[314170429,1708039863153,-588.0,0.00041395,30]
[314170430,1708039863162,-199.0,0.00041395,30]
[314170431,1708039863172,-500.0,0.0004143,7]
[314170432,1708039863181,-234.021624,0.00041448,27]
[314170433,1708039863190,-140350.67954856,0.00041452,10]
[314170434,1708039863207,-31489.32045144,0.00041452,10]
[314170435,1708039863217,-1050.0,0.00041463,7]
[314170436,1708039863226,-628.0,0.00041463,7]
[314170437,1708039863236,-728.0,0.00041463,7]
[314170438,1708039863246,-200.0,0.00041463,7]
[314170439,1708039863256,-234.0,0.000415,5]
[314170440,1708039863267,-5000.0,0.000415,14]
[314170441,1708039863276,-1364.38,0.00041503,7]
[314170442,1708039863286,-1364.38,0.00041503,7]
[314170443,1708039863295,-151.0,0.00041503,7]
[314170444,1708039863305,-154.0,0.00041503,7]
[314170445,1708039863315,-500.0,0.00041546,4]
[314170446,1708039863328,-500.0,0.00041555,4]
[314170447,1708039863337,-1952.60910649,0.00041561,10]
[314170448,1708039863346,-500.0,0.00041564,7]
[314170449,1708039863354,-500.0,0.00041564,4]
[314170450,1708039863364,-6881.50915963,0.00041569,2]
[314170451,1708039863374,-500.0,0.00041573,4]
[314170452,1708039863386,-160.0,0.00041581,3]
[314170453,1708039863396,-16000.0,0.00041581,3]
[314170454,1708039863405,-500.0,0.00041582,4]
[314170455,1708039863415,-160.0,0.0004159,3]
[314170456,1708039863423,-16000.0,0.0004159,3]
[314170457,1708039863433,-500.0,0.0004159,4]
[314170458,1708039863442,-1165.16,0.0004159,2]
[314170459,1708039863451,-500.0,0.00041599,4]
[314170460,1708039863460,-3272.63,0.000416,7]
[314170461,1708039863469,-500.0,0.00041608,4]
[314170462,1708039863479,-500.0,0.00041617,4]
[314170463,1708039863491,-151.0,0.0004164,7]
[314170464,1708039863500,-154.0,0.0004164,7]
[314170465,1708039863510,-600.0,0.00041643,30]
[314170466,1708039863521,-500.0,0.00041643,30]
[314170467,1708039863530,-500.0,0.00041643,30]
[314170468,1708039863539,-641.93,0.00041643,30]
[314170469,1708039863549,-500.0,0.00041643,30]
[314170470,1708039863559,-706.01,0.00041643,30]
[314170471,1708039863568,-500.0,0.00041643,30]
[314170472,1708039863578,-516.65,0.00041643,30]
[314170473,1708039863589,-533.86,0.00041643,30]
[314170474,1708039863598,-700.0,0.00041643,30]
[314170475,1708039863608,-500.0,0.00041643,30]
[314170476,1708039863617,-1877.83,0.00041643,30]
[314170477,1708039863626,-623.53,0.00041643,30]
[314170478,1708039863636,-500.0,0.00041643,30]
[314170479,1708039863646,-500.0,0.00041643,30]
[314170480,1708039863655,-552.23,0.00041643,30]
[314170481,1708039863666,-965.78,0.00041643,30]
[314170482,1708039863675,-500.0,0.00041643,30]
[314170483,1708039863684,-564.23,0.00041643,30]
[314170484,1708039863693,-596.43,0.00041643,30]
[314170485,1708039863703,-500.0,0.00041643,30]
[314170486,1708039863712,-500.0,0.00041643,30]
[314170487,1708039863722,-604.95,0.00041643,30]
[314170488,1708039863731,-752.59,0.00041643,30]
[314170489,1708039863741,-670.38,0.00041643,30]
[314170490,1708039863750,-500.0,0.00041643,30]
[314170491,1708039863760,-500.0,0.00041643,30]
[314170492,1708039863769,-1453.37,0.00041643,30]
[314170493,1708039863778,-1177.03,0.00041643,30]
[314170494,1708039863787,-8292.83,0.00041643,30]
[314170495,1708039863796,-598.96,0.00041643,30]
[314170496,1708039863806,-567.05,0.00041643,30]
[314170497,1708039863815,-684.76,0.00041643,30]
[314170498,1708039863825,-363.40865848,0.00041652,2]
[314170499,1708039863835,-195.0,0.0004166,2]
[314170500,1708039863845,-166.66666666,0.00041677,30]
[314170501,1708039863854,-150.0,0.00041689,60]
[314170502,1708039863864,-500.0,0.00041697,7]
[314170503,1708039863872,-394.54,0.000417,7]
[314170504,1708039863882,-3771.0,0.000417,87]
[314170505,1708039863891,-171.18795662,0.0004173,30]
[314170506,1708039863900,-234.021624,0.00041748,27]
[314170507,1708039863909,-151.0,0.00041777,7]
[314170508,1708039863919,-154.0,0.00041777,7]
[314170509,1708039863928,-150.0,0.0004178,3]
[314170510,1708039863937,-150.0,0.0004178,3]
[314170511,1708039863946,-234.50460932,0.000418,10]
[314170512,1708039863956,-979.18,0.000418,18]
[314170513,1708039863965,-200.0,0.000418,17]
[314170514,1708039863975,-588.0,0.00041818,30]
[314170515,1708039863985,-199.0,0.00041818,30]
[314170516,1708039863994,-157.81,0.00041828,2]
[314170517,1708039864003,-500.0,0.00041831,7]
[314170518,1708039864012,-324.41611297,0.00041874,31]
[314170519,1708039864022,-185.26729041,0.00041877,2]
[314170520,1708039864031,-127776.43753378,0.0004188,8]
[314170521,1708039864041,-270.86923933,0.00041894,5]
[314170522,1708039864055,-18513.027418,0.00041894,5]
[314170523,1708039864066,-151.0,0.00041914,7]
[314170524,1708039864076,-154.0,0.00041914,7]
[314170525,1708039864085,-600.0,0.00041917,30]
[314170526,1708039864095,-500.0,0.00041917,30]
[314170527,1708039864104,-641.93,0.00041917,30]
[314170528,1708039864114,-500.0,0.00041917,30]
[314170529,1708039864123,-706.01,0.00041917,30]
[314170530,1708039864133,-500.0,0.00041917,30]
[314170531,1708039864143,-516.65,0.00041917,30]
[314170532,1708039864152,-533.86,0.00041917,30]
[314170533,1708039864161,-700.0,0.00041917,30]
[314170534,1708039864171,-500.0,0.00041917,30]
[314170535,1708039864180,-1877.83,0.00041917,30]
[314170536,1708039864189,-623.53,0.00041917,30]
[314170537,1708039864199,-500.0,0.00041917,30]
[314170538,1708039864213,-500.0,0.00041917,30]
[314170539,1708039864222,-552.23,0.00041917,30]
[314170540,1708039864232,-965.78,0.00041917,30]
[314170541,1708039864242,-500.0,0.00041917,30]
[314170542,1708039864253,-564.23,0.00041917,30]
[314170543,1708039864264,-596.43,0.00041917,30]
[314170544,1708039864274,-500.0,0.00041917,30]
[314170545,1708039864285,-500.0,0.00041917,30]
[314170546,1708039864294,-604.95,0.00041917,30]
[314170547,1708039864303,-752.59,0.00041917,30]
[314170548,1708039864312,-670.38,0.00041917,30]
[314170549,1708039864322,-500.0,0.00041917,30]
[314170550,1708039864331,-500.0,0.00041917,30]
[314170551,1708039864341,-1453.37,0.00041917,30]
[314170552,1708039864350,-1177.03,0.00041917,30]
[314170553,1708039864359,-8292.83,0.00041917,30]
[314170554,1708039864367,-598.96,0.00041917,30]
[314170555,1708039864377,-567.05,0.00041917,30]
[314170556,1708039864386,-684.76,0.00041917,30]
[314170557,1708039864395,-159.205528,0.00041918,14]
[314170558,1708039864404,-159.53892364,0.00041948,30]
[314170559,1708039864414,-500.0,0.00041965,7]
[314170560,1708039864423,-200.0,0.00041987,19]
[314170561,1708039864432,-200.0,0.00041987,18]
[314170562,1708039864441,-200.0,0.00041987,17]
[314170563,1708039864450,-200.0,0.00041987,15]
[314170564,1708039864459,-159.53892364,0.00041987,30]
[314170565,1708039864468,-2099.03120671,0.0004199,30]
[314170566,1708039864681,-500.0,0.00039178,7]